bitfinex-derivatives/quotes_ETHF0:USTF0_20250105
["timestamp","ask_amount","ask_price","bid_price","bid_amount"]
[1736113159243,5.38981794,3647.7,3647.3,2.62347838]
[1736113159444,0.24678,3647.5,3647.4,0.4133]
[1736113159643,0.24678,3647.5,3647.4,0.8281]
[1736113163339,0.24678,3647.5,3647.4,0.4148]
[1736113165237,3.26691838,3647.6,3646.7,0.24683]
[1736113165442,3.2078,3647.3,3646.6,3.2078]
[1736113165836,0.24683,3646.7,3646.6,3.2078]
[1736113166034,0.24683,3646.8,3646.6,3.45464]
[1736113166347,0.68743,3646.7,3646.6,3.2078]
[1736113167646,0.68743,3646.7,3646.6,3.45464]
[1736113167941,2.84032337,3646.7,3646.6,3.45464]
[1736113169143,2.84032337,3646.7,3646.6,0.24684]
[1736113169347,2.84032337,3646.7,3646.5,0.24684]
[1736113173447,2.59349337,3646.7,3646.4,0.8474]
[1736113173647,0.24684,3646.5,3646.4,0.8474]
[1736113173835,0.24685,3646.4,3646.3,1.4924]
[1736113175537,0.24685,3646.4,3646.3,1.73926]
[1736113175940,0.24685,3646.4,3646.3,1.4924]
[1736113176448,0.24685,3646.4,3646.3,1.73926]
[1736113178541,0.24685,3646.5,3646.3,1.73926]
[1736113179346,2.39973337,3646.6,3646.5,0.24684]
[1736113179650,2.39973337,3646.6,3646.4,0.24685]
[1736113180548,0.24684,3646.6,3646.4,0.24685]
[1736113181343,0.24684,3646.6,3646.4,1.11325]
[1736113181545,0.24684,3646.6,3646.5,0.24684]
[1736113183553,2.59349337,3646.7,3646.4,1.11325]
[1736113183554,0.24684,3646.5,3646.4,1.11325]
[1736113184453,0.24684,3646.6,3646.4,1.11325]
[1736113184843,2.39973337,3646.6,3646.4,1.11325]
[1736113185049,2.39973337,3646.6,3646.5,1.23994496]
[1736113187254,2.15289337,3646.6,3646.5,1.23994496]
[1736113188259,2.84033337,3646.7,3646.5,1.23994496]
[1736113188853,2.84033337,3646.7,3646.6,0.24684]
[1736113189053,2.84033337,3646.7,3646.5,0.99310496]
[1736113189258,2.84033337,3646.7,3646.5,1.23994496]
[1736113189663,2.59349337,3646.7,3646.5,1.23994496]
[1736113189856,0.24684,3646.6,3646.5,1.23994496]
[1736113190257,0.24684,3646.6,3646.5,0.99310496]
[1736113191162,0.68743,3646.7,3646.5,1.23994496]
[1736113191660,0.68743,3646.7,3646.6,0.24684]
[1736113191960,0.68743,3646.7,3646.5,1.23994496]
[1736113192462,0.68743,3646.7,3646.6,0.24684]
[1736113194356,0.68743,3646.7,3646.5,1.23994496]
[1736113194764,1.09894278,3646.7,3646.5,1.23994496]
[1736113196154,0.68743,3646.7,3646.5,1.23994496]
[1736113196966,0.24684,3646.6,3646.5,1.23994496]
[1736113197465,0.68743,3646.7,3646.6,0.24684]
[1736113198571,0.4406,3646.7,3646.5,0.99310496]
[1736113198869,0.4406,3646.7,3646.5,1.23994496]
[1736113198870,1.0989429,3646.7,3646.5,1.23994496]
[1736113199972,0.68743,3646.7,3646.5,1.23994496]
[1736113200570,0.68743,3646.7,3646.5,0.99310496]
[1736113200772,0.68743,3646.7,3646.6,0.24684]
[1736113201470,0.24684,3646.6,3646.5,1.23994496]
[1736113201773,0.68743,3646.7,3646.6,0.24684]
[1736113202381,1.09894462,3646.7,3646.6,0.24684]
[1736113203069,0.85211462,3646.7,3646.6,0.24684]
[1736113203764,0.41151462,3646.7,3646.6,0.24684]
[1736113204776,0.65833462,3646.9,3646.8,0.24682]
[1736113205078,0.65833462,3646.9,3646.8,1.23992496]
[1736113206077,0.41151462,3646.9,3646.8,1.23992496]
[1736113206278,0.65833462,3646.9,3646.8,1.23992496]
[1736113207779,4.96448208,3646.9,3646.8,1.23992496]
[1736113210374,0.65833462,3646.9,3646.8,1.23992496]
[1736113211977,0.24682,3646.9,3646.8,1.23992496]
[1736113212177,0.24682,3646.9,3646.8,0.99310496]
[1736113212578,0.24682,3646.9,3646.8,1.40900496]
[1736113212879,0.24682,3646.9,3646.8,1.65582496]
[1736113213081,5.05442046,3646.9,3646.8,1.40900496]
[1736113213281,5.05442046,3646.9,3646.8,0.4159]
[1736113216484,0.65833462,3646.9,3646.8,0.4159]
[1736113218197,0.24682,3646.9,3646.8,0.4159]
[1736113219790,10.44506163,3646.9,3646.8,0.4159]
[1736113219992,11.19134659,3646.9,3646.5,4.27972867]
[1736113220287,1.23994496,3646.6,3646.5,4.27972867]
[1736113220785,1.68774496,3646.6,3646.5,4.27972867]
[1736113222582,7.68084992,3646.6,3646.5,0.36902867]
[1736113222789,7.68084992,3646.6,3646.3,6.42496637]
[1736113222790,0.24689,3645.8,3645.7,0.4179]
[1736113222998,1.23999496,3645.8,3645.7,0.4179]
[1736113224294,5.96587512,3645.8,3645.7,0.4179]
[1736113225696,1.65150958,3645.8,3645.7,0.4179]
[1736113227496,4.88475486,3645.8,3645.7,0.4179]
[1736113228389,4.63786486,3645.8,3645.3,0.833]
[1736113228591,0.24692,3645.4,3645.3,0.4279]
[1736113230490,4.47327024,3645.5,3645.3,0.67483]
[1736113231087,3.23324528,3645.5,3645.4,1.24002496]
[1736113231797,2.15340499,3645.5,3645.4,1.24002496]
[1736113232795,2.15340499,3645.6,3645.4,1.24002496]
[1736113232997,2.15340499,3645.6,3645.5,0.4186]
[1736113233198,2.40031499,3645.6,3645.5,0.4186]
[1736113233693,3.39341995,3645.6,3645.5,0.4186]
[1736113234393,0.99310496,3645.6,3644.9,3.2078]
[1736113234699,1.24002496,3645.4,3645.2,0.24693]
[1736113234892,1.24002496,3645.4,3645.3,0.4373]
[1736113235899,2.15340499,3645.5,3645.3,0.68423]
[1736113236196,2.40031499,3645.5,3645.4,0.4378]
[1736113237094,0.24691,3645.5,3645.4,0.4378]
[1736113237595,1.24001496,3645.5,3645.4,0.4378]
[1736113240508,1.24001496,3645.5,3645.4,0.68472]
[1736113240905,0.99310496,3645.5,3645.4,0.68472]
[1736113241604,1.24001496,3645.5,3645.4,0.4378]
[1736113242301,4.20090496,3645.5,3644.9,3.2078]
[1736113242508,0.24695,3644.9,3644.8,1.2653]
[1736113243608,0.24697,3644.7,3644.5,0.24698]
[1736113243907,0.99310496,3644.9,3644.6,0.8206]
[1736113244205,1.24006496,3644.9,3644.7,0.24696]
[1736113245004,0.24696,3644.8,3644.7,0.24696]
[1736113245205,0.24696,3644.8,3644.6,1.06757]
[1736113245505,0.99310496,3644.9,3644.7,0.24697]
[1736113245808,0.24697,3644.7,3644.6,1.06757]
[1736113246002,0.24696,3644.8,3644.6,1.06757]
[1736113246505,0.99310496,3644.9,3644.6,0.8206]
[1736113246711,0.24697,3644.7,3644.6,1.06757]
[1736113247007,1.24007496,3644.7,3644.6,1.06757]
[1736113247502,0.99310496,3644.7,3644.6,1.06757]
[1736113248502,1.24007496,3644.7,3644.6,0.8206]
[1736113248705,4.44787496,3644.7,3644.6,0.8206]
[1736113250803,1.24007496,3644.7,3644.6,0.8206]
[1736113251005,0.99310496,3644.7,3644.6,0.8206]
[1736113251202,0.99310496,3644.7,3644.6,1.06757]
[1736113251405,1.24007496,3644.7,3644.6,0.8206]
[1736113252607,0.99310496,3644.7,3644.6,1.06757]
[1736113253009,3.45476,3644.9,3644.6,1.06757]
[1736113253510,0.24696,3644.8,3644.6,1.06757]
[1736113255502,0.24697,3644.7,3644.6,1.06757]
[1736113256313,0.24697,3644.7,3644.6,0.8206]
[1736113256506,3.2078,3644.9,3644.6,0.8206]
[1736113256707,0.24696,3644.8,3644.6,1.06757]
[1736113257108,0.24697,3644.7,3644.6,0.8206]
[1736113257411,0.24698,3644.5,3644.0,2.20306897]
[1736113257610,0.24698,3644.5,3644.1,0.8655]
[1736113257805,3.2078,3644.9,3644.1,0.8655]
[1736113258014,0.24698,3644.6,3644.4,0.24698]
[1736113258412,0.24698,3644.6,3644.5,0.431]
[1736113259308,0.24697,3644.7,3644.5,0.67798]
[1736113259501,0.24697,3644.7,3644.6,0.4345]
[1736113260111,0.24696,3644.8,3644.6,0.68147]
[1736113260316,3.2078,3644.9,3644.6,0.68147]
[1736113260716,0.24696,3644.8,3644.6,0.68147]
[1736113262311,0.24697,3644.7,3644.6,0.4345]
[1736113264912,0.24697,3644.6,3644.5,0.431]
[1736113265316,3.45477,3644.6,3644.5,0.431]
[1736113265722,3.2078,3644.6,3644.2,0.8208]
[1736113265911,0.24699,3644.3,3644.2,0.8208]
[1736113274725,1.24132919,3644.3,3644.2,0.8208]
[1736113277225,2.40039499,3644.4,3644.2,1.06779]
[1736113277429,2.40039499,3644.4,3644.3,0.24699]
[1736113277617,0.24699,3644.3,3644.2,1.0678]
[1736113278026,0.24699,3644.3,3644.2,0.8208]
[1736113282426,2.40039499,3644.3,3644.2,0.8208]
[1736113283837,0.24699,3644.3,3644.2,0.8208]
[1736113285932,3.89201439,3644.3,3644.2,0.8208]
[1736113286530,3.89201439,3644.3,3644.2,0.4069]
[1736113287636,0.65876911,3644.3,3644.2,0.4069]
[1736113288945,4.56135554,3644.3,3644.2,0.4069]
[1736113290234,4.97313465,3644.3,3644.2,0.4069]
[1736113291040,4.97313465,3644.3,3644.2,0.6539]
[1736113291746,4.97313465,3644.3,3644.2,0.4069]
[1736113293345,4.97313465,3644.3,3644.2,0.6539]
[1736113295440,4.97313465,3644.3,3644.2,0.4069]
[1736113295635,4.72614465,3644.3,3643.9,6.42496637]
[1736113295836,1.24134919,3644.0,3643.9,6.42496637]
[1736113296844,0.24702,3643.9,3643.8,0.8629]
[1736113297036,0.24702,3643.9,3643.8,0.4324]
[1736113298035,10.55850914,3643.9,3643.8,0.4324]
[1736113298436,0.24704,3643.6,3643.4,0.68605]
[1736113298747,1.24138919,3643.5,3643.4,0.8777]
[1736113298945,1.24138919,3643.5,3643.4,1.12475]
[1736113299443,1.24138919,3643.5,3643.4,0.8777]
[1736113299948,1.6531683,3643.5,3643.4,0.8777]
[1736113300743,1.6531683,3643.5,3643.4,1.12475]
[1736113301046,4.8895667,3643.5,3643.4,1.12475]
[1736113301648,4.8895667,3643.5,3643.4,0.8777]
[1736113301837,4.8895667,3643.5,3643.4,1.12475]
[1736113302843,4.8895667,3643.5,3643.4,0.8777]
[1736113303652,4.47778759,3643.5,3643.4,0.8777]
[1736113304243,4.23073759,3643.5,3643.4,0.8777]
[1736113304442,4.23073759,3643.5,3643.4,1.12475]
[1736113304644,3.2363984,3643.5,3643.4,1.12475]
[1736113305147,4.23073759,3643.5,3643.4,1.12475]
[1736113305349,0.99433919,3643.5,3643.4,1.12475]
[1736113306549,3.15036256,3643.5,3643.4,1.12475]
[1736113308244,3.39741256,3643.5,3643.4,1.12475]
[1736113308848,3.15036256,3643.5,3643.0,3.2078]
[1736113309052,1.24139919,3643.3,3643.2,0.8499]
[1736113310043,0.24709,3642.9,3642.7,6.67206637]
[1736113310246,0.24709,3642.9,3642.8,0.8499]
[1736113311651,1.24142919,3642.9,3642.8,0.8499]
[1736113311850,3.39642026,3642.9,3642.8,0.8499]
[1736113313254,1.24142919,3642.9,3642.8,0.8499]
[1736113325557,1.24142919,3642.9,3642.8,0.4125]
[1736113338064,0.99433919,3642.9,3642.7,0.4305]
[1736113338268,0.24712,3642.4,3642.3,0.4119]
[1736113338472,1.24145919,3642.4,3642.3,0.4119]
[1736113338666,0.99433919,3642.4,3641.9,0.4273]
[1736113338968,0.24715,3642.0,3641.9,0.4273]
[1736113342268,3.45495,3642.0,3641.9,0.4273]
[1736113343670,3.2078,3642.0,3641.9,0.67446]
[1736113344577,4.46957927,3642.1,3641.9,0.67446]
[1736113344771,0.24715,3642.0,3641.9,0.4273]
[1736113345474,3.39542776,3642.1,3641.9,0.67445]
[1736113345671,0.24715,3642.0,3641.9,0.4273]
[1736113347371,3.14827776,3642.1,3641.9,0.4273]
[1736113347669,3.39542776,3642.1,3641.9,0.67445]
[1736113349676,0.24715,3642.0,3641.9,0.67446]
[1736113350974,0.24715,3642.0,3641.9,0.4273]
[1736113351871,0.6179,3641.9,3641.1,7.5024769]
[1736113352073,0.99433919,3641.2,3641.1,5.1342769]
[1736113352271,0.99433919,3641.4,3641.1,5.1342769]
[1736113352475,1.24151919,3641.6,3641.4,0.24719]
[1736113352873,1.24151919,3641.6,3641.5,0.4302]
[1736113356369,1.24151919,3641.6,3641.5,0.8504]
[1736113372791,1.24151919,3641.6,3641.5,0.4302]
[1736113374193,3.39545776,3641.6,3641.5,0.4302]
[1736113375591,1.24151919,3641.6,3641.5,0.4302]
[1736113376696,3.39545776,3641.6,3641.5,0.4302]
[1736113379594,1.24151919,3641.6,3641.5,0.4302]
[1736113381191,4.46960927,3641.6,3641.5,0.4302]
[1736113382698,1.65360955,3641.6,3641.5,0.4302]
[1736113383997,5.5456393,3641.6,3641.5,0.4302]
[1736113385201,5.95772966,3641.6,3641.5,0.4302]
[1736113390704,4.96339047,3641.6,3641.5,0.4302]
[1736113390899,4.71621047,3641.6,3641.5,0.67738]
[1736113391101,0.41209036,3641.6,3641.5,0.67738]
[1736113392807,0.41209036,3641.6,3641.5,4.9720569]
[1736113392808,3.24086593,3641.6,3641.5,4.9720569]
[1736113395408,3.65295629,3641.7,3641.5,10.57968747]
[1736113395607,3.65295629,3641.7,3641.6,0.65818]
[1736113397010,0.41209036,3641.7,3641.6,0.65818]
[1736113398207,4.32115458,3641.9,3641.6,5.7163189]
[1736113398404,3.64555458,3641.9,3641.8,0.99433919]
[1736113398607,3.64555458,3641.9,3641.8,1.24149919]
[1736113400007,2.16068825,3641.9,3641.8,11.40674078]
[1736113401113,1.48508825,3641.9,3641.8,11.40674078]
[1736113401413,1.48508825,3642.0,3641.9,0.24716]
[1736113401614,1.48508825,3642.0,3641.9,0.68876]
[1736113402809,0.99433919,3642.1,3642.0,0.24715]
[1736113404316,0.99433919,3642.1,3642.0,0.67865]
[1736113406820,0.24716,3641.9,3641.8,4.30608207]
[1736113407015,0.24716,3641.9,3641.8,4.55324207]
[1736113407216,1.24149919,3641.9,3641.8,4.30608207]
[1736113408316,1.24149919,3641.9,3641.4,12.20326173]
[1736113408317,1.40639388,3641.9,3641.4,12.45045173]
[1736113408508,1.40639388,3641.9,3641.4,3.45499]
[1736113408509,0.99433919,3641.5,3641.4,3.45499]
[1736113408915,1.42593919,3641.5,3641.4,3.2078]
[1736113409422,1.67311919,3641.5,3641.4,3.2078]
[1736113410119,1.67311919,3641.5,3641.3,0.2472]
[1736113411019,1.42593919,3641.5,3641.1,4.30608207]
[1736113411216,0.24721,3641.1,3641.0,4.30608207]
[1736113411520,1.24154919,3641.1,3641.0,4.30608207]
[1736113412523,0.99433919,3641.1,3641.0,4.55330207]
[1736113413027,4.64369106,3641.1,3641.0,0.24722]
[1736113414124,0.99433919,3641.1,3641.0,0.24722]
[1736113440536,1.24154919,3641.1,3641.0,0.24722]
[1736113440837,0.99433919,3641.1,3641.0,0.24722]
[1736113442436,6.44499806,3641.4,3640.9,0.99433919]
[1736113442644,3.23719806,3641.4,3641.3,0.2472]
[1736113444645,0.99433919,3641.5,3641.2,1.061]
[1736113444849,0.24717,3641.7,3641.4,0.24719]
[1736113445047,0.24717,3641.7,3641.5,0.69208]
[1736113446143,3.23719806,3641.8,3641.5,0.4449]
[1736113446342,0.99433919,3641.6,3641.5,0.4449]
[1736113446549,0.99433919,3641.6,3641.5,0.69208]
[1736113448745,4.23153725,3641.6,3641.5,0.69208]
[1736113449946,9.23153725,3641.6,3641.5,0.24718]
[1736113450154,9.23153725,3641.6,3641.0,4.30608207]
[1736113450155,0.24721,3641.1,3641.0,4.30608207]
[1736113450449,5.44368838,3641.1,3641.0,4.30608207]
[1736113451454,0.24724,3640.7,3640.5,0.8486]
[1736113452849,0.99433919,3640.6,3640.5,0.8486]
[1736113453045,3.6199948,3641.1,3640.5,0.8486]
[1736113453245,0.4121948,3640.6,3640.5,2.15685]
[1736113454649,0.99433919,3640.8,3640.5,6.21568207]
[1736113454851,0.99433919,3640.8,3640.7,0.24724]
[1736113459155,3.23898603,3640.9,3640.6,4.30608207]
[1736113459354,3.23898603,3640.9,3640.8,0.24723]
[1736113460851,3.23898603,3640.9,3640.5,2.90393919]
[1736113460852,4.23332522,3641.0,3640.9,0.24722]
[1736113465263,0.99433919,3641.0,3640.9,0.24722]
[1736113468052,4.23332522,3641.0,3640.9,0.24722]
[1736113469157,4.64547148,3641.0,3640.9,0.24722]
[1736113475363,4.23332522,3641.0,3640.9,0.24722]
[1736113476457,0.99433919,3641.0,3640.9,0.24722]
[1736113476864,0.99433919,3641.0,3640.9,0.69192]
[1736113477864,4.23332522,3641.0,3640.9,0.69192]
[1736113479468,0.99433919,3641.0,3640.9,0.69192]
[1736113482160,4.23332522,3641.0,3640.9,0.69192]
[1736113483465,0.99433919,3641.0,3640.9,0.69192]
[1736113484558,3.23898603,3641.1,3641.0,0.24722]
[1736113484762,3.23898603,3641.1,3641.0,0.68662]
[1736113486774,3.65107244,3641.4,3641.3,0.2472]
[1736113488181,3.23898603,3641.4,3641.3,0.2472]
[1736113490376,3.23898603,3641.4,3641.3,1.1207]
[1736113491075,4.23332522,3641.5,3641.4,0.24719]
[1736113492073,3.23898603,3641.5,3641.4,0.24719]
[1736113492266,1.35298603,3641.5,3641.4,0.24719]
[1736113492862,1.35298603,3641.6,3641.5,0.24718]
[1736113493069,1.35298603,3641.6,3641.5,1.24151919]
[1736113494469,0.99433919,3642.0,3641.9,0.24716]
[1736113495777,1.40637031,3642.0,3641.9,0.24716]
[1736113499380,0.41203112,3642.0,3641.9,0.24716]
[1736113500773,0.41203112,3642.0,3641.6,3.6297]
[1736113500969,0.99433919,3641.7,3641.6,3.45498]
[1736113501168,0.99433919,3641.7,3641.6,0.24718]
[1736113502571,1.43683919,3641.9,3641.8,0.24716]
[1736113505378,1.43683919,3641.9,3641.4,2.06733919]
[1736113505579,1.86783919,3641.9,3641.8,0.24716]
[1736113513186,1.86783919,3641.9,3641.3,4.74548207]
[1736113513387,0.99433919,3641.7,3641.6,0.24717]
[1736113514982,1.43683919,3641.9,3641.8,0.24716]
[1736113515284,0.99433919,3641.9,3641.8,0.24716]
[1736113520284,0.99433919,3641.9,3641.4,4.30608207]
[1736113520491,0.99433919,3641.7,3641.6,0.24718]
[1736113521490,0.99433919,3641.7,3641.3,5.81848207]
[1736113521690,0.99433919,3641.5,3641.4,0.24719]
[1736113522688,0.99433919,3641.5,3641.3,4.74548207]
[1736113522890,0.69079,3641.4,3641.3,4.30608207]
[1736113523689,0.69079,3641.4,3641.3,4.55328207]
[1736113523690,0.4436,3641.4,3641.3,4.55328207]
[1736113524790,0.8556897,3641.4,3641.3,0.2472]
[1736113524985,0.4120897,3641.4,3641.3,0.2472]
[1736113526087,0.99433919,3641.5,3641.4,0.24719]
[1736113528586,1.40641895,3641.5,3641.4,0.24719]
[1736113530588,1.40641895,3641.5,3641.3,4.30608207]
[1736113530791,1.40641895,3641.5,3641.4,0.24719]
[1736113531897,5.72581934,3641.5,3641.4,0.24719]
[1736113538598,5.97299934,3641.5,3641.3,0.24719]
[1736113538822,0.99433919,3641.4,3641.3,0.24719]
[1736113539511,0.99433919,3641.4,3641.2,4.30608207]
[1736113539816,0.2472,3641.3,3641.2,4.30608207]
[1736113540007,1.1029,3641.3,3641.2,4.30608207]
[1736113541796,1.1029,3641.3,3641.1,3.6311]
[1736113541797,5.93919046,3641.3,3641.1,3.87831]
[1736113541996,0.99433919,3641.2,3641.1,3.87831]
[1736113542308,1.24153919,3641.2,3641.1,3.87831]
[1736113543202,5.97286428,3641.2,3641.1,3.87831]
[1736113544305,1.65361895,3641.2,3641.1,3.87831]
[1736113544507,1.65361895,3641.2,3641.1,3.6311]
[1736113545605,1.65361895,3641.2,3641.1,0.4233]
[1736113546503,1.24153919,3641.2,3641.1,0.4233]
[1736113546903,1.65366445,3641.2,3641.1,0.4233]
[1736113556105,1.40646445,3641.2,3640.9,0.863]
[1736113556306,1.24155919,3641.0,3640.9,0.863]
[1736113558718,4.47855294,3641.0,3640.9,0.863]
[1736113565422,4.89070547,3641.0,3640.9,0.863]
[1736113567618,5.88504466,3641.0,3640.9,0.863]
[1736113568516,6.96729624,3641.0,3640.9,0.863]
[1736113569319,0.24725,3640.5,3640.4,0.24726]
[1736113569518,1.24158919,3640.5,3640.4,0.68246]
[1736113570125,0.99433919,3640.5,3640.4,0.68246]
[1736113570324,0.24723,3640.9,3640.8,0.24723]
[1736113570518,0.24723,3640.9,3640.6,0.24724]
[1736113570519,1.24156919,3640.9,3640.6,0.24724]
[1736113570721,1.24156919,3640.9,3640.8,0.24723]
[1736113571324,1.24156919,3640.9,3640.7,0.24723]
[1736113571525,0.99433919,3641.0,3640.6,0.99433919]
[1736113571828,3.89786319,3640.9,3640.8,0.24723]
[1736113572028,0.24724,3640.7,3640.6,0.24724]
[1736113572222,0.24724,3640.6,3640.5,0.8667]
[1736113580723,3.48572066,3640.6,3640.5,0.8667]
[1736113580925,3.23848066,3640.6,3640.4,0.4352]
[1736113581122,1.24158919,3640.5,3640.4,0.4352]
[1736113583433,4.89226867,3640.5,3640.4,0.4352]
[1736113586222,1.65378801,3640.5,3640.4,0.4352]
[1736113587630,1.24158919,3640.5,3640.4,0.4352]
[1736113588924,1.65378801,3640.5,3640.4,0.4352]
[1736113589530,1.65378801,3640.5,3640.4,0.68246]
[1736113589938,1.40653801,3640.5,3640.4,0.68246]
[1736113593344,4.31797421,3640.6,3640.5,0.24725]
[1736113593640,3.64227421,3640.7,3640.6,0.24724]
[1736113593843,3.64227421,3640.7,3640.6,2.31057919]
[1736113594040,2.96657421,3640.7,3640.6,2.31057919]
[1736113595343,2.15999694,3641.0,3640.9,0.24722]
[1736113595534,2.15999694,3641.0,3640.9,1.24155919]
[1736113596033,2.15999694,3641.0,3640.9,0.24722]
[1736113596642,2.15999694,3641.0,3640.9,4.995446]
[1736113597236,2.15999694,3641.0,3640.9,5.414846]
[1736113599043,2.15999694,3641.0,3640.9,1.10562]
[1736113599236,3.15433613,3641.0,3640.9,0.66662]
[1736113601848,2.15999694,3641.0,3640.9,0.66662]
[1736113603142,2.15999694,3641.1,3641.0,0.24722]
[1736113603533,2.15999694,3641.1,3641.0,0.68542]
[1736113606842,2.15999694,3641.1,3641.0,0.24722]
[1736113619145,2.15999694,3641.1,3640.7,5.796926]
[1736113619342,0.99433919,3640.8,3640.7,6.044166]
[1736113619543,0.99433919,3640.8,3640.7,4.728926]
[1736113619743,0.99433919,3640.8,3640.7,4.309226]
[1736113620043,0.99433919,3640.8,3640.7,4.556466]
[1736113620343,1.43743919,3640.8,3640.7,4.556466]
[1736113620548,4.89246919,3640.8,3640.7,4.309226]
[1736113620743,4.89246919,3640.8,3640.7,3.633626]
[1736113621447,0.24726,3640.4,3640.2,3.633626]
[1736113621646,0.99433919,3640.3,3640.2,3.880896]
[1736113622943,0.99433919,3640.3,3640.1,3.21807451]
[1736113623143,0.4225,3640.2,3640.1,3.21807451]
[1736113625053,1.40213919,3640.3,3640.1,2.97080451]
[1736113625251,1.40213919,3640.3,3640.2,0.68687]
[1736113631245,1.40213919,3640.3,3640.2,1.12577]
[1736113632053,0.99433919,3640.3,3640.2,1.12577]
[1736113636755,2.15845935,3640.5,3640.2,0.8785]
[1736113636958,2.15845935,3640.5,3640.4,0.24726]
[1736113638658,2.15845935,3640.6,3640.3,1.40243919]
[1736113638856,2.15845935,3640.6,3640.5,0.24725]
[1736113639063,2.15845935,3640.6,3640.5,1.31225]
[1736113641359,2.15845935,3640.6,3640.5,2.30658919]
[1736113642963,2.15845935,3640.8,3640.7,0.24724]
[1736113643264,2.15845935,3640.8,3640.7,1.24157919]
[1736113643762,2.15845935,3640.8,3640.7,1.64937919]
[1736113644467,3.15279854,3641.0,3640.9,0.24722]
[1736113650760,3.40001854,3641.0,3640.8,0.66223]
[1736113651068,0.4112,3640.9,3640.8,0.66223]
[1736113651771,0.65842,3640.9,3640.8,0.415]
[1736113652167,0.4112,3640.9,3640.8,0.24723]
[1736113652973,0.4112,3640.9,3640.7,3.45504]
[1736113653167,0.99433919,3640.8,3640.7,3.45504]
[1736113657266,1.24156919,3640.8,3640.7,3.45504]
[1736113657471,4.23433461,3640.8,3640.7,3.45504]
[1736113661670,4.64649782,3640.8,3640.7,3.45504]
[1736113662566,3.65215863,3640.8,3640.7,3.45504]
[1736113662975,3.23999542,3640.8,3640.7,3.45504]
[1736113664474,3.23999542,3640.8,3640.7,4.44937919]
[1736113665875,2.57162657,3640.9,3640.7,4.20213919]
[1736113666176,2.15947625,3640.9,3640.8,0.66073]
[1736113666378,2.15947625,3640.9,3640.8,1.09403]
[1736113666579,3.15381544,3640.9,3640.8,0.66073]
[1736113666781,3.57631544,3640.9,3640.8,0.66073]
[1736113667169,4.65683461,3640.9,3640.8,0.66073]
[1736113668582,1.41683919,3640.9,3640.8,0.66073]
[1736113670276,1.41683919,3640.9,3640.8,0.24723]
[1736113670476,1.66405919,3640.9,3640.8,0.24723]
[1736113670676,1.41683919,3640.9,3640.8,0.24723]
[1736113671075,1.82898669,3640.9,3640.8,0.24723]
[1736113672079,6.14543108,3640.9,3640.8,0.24723]
[1736113678575,5.72293108,3640.9,3640.8,0.24723]
[1736113680386,5.72293108,3640.9,3640.6,0.4333]
[1736113680783,0.24724,3640.7,3640.6,0.68054]
[1736113682889,0.6593875,3640.7,3640.6,0.68054]
[1736113684290,1.0817875,3640.7,3640.6,0.68054]
[1736113684792,0.8345475,3640.7,3640.6,0.68054]
[1736113685586,5.15099189,3640.7,3640.6,0.68054]
[1736113688687,4.72859189,3640.7,3640.6,0.68054]
[1736113689589,4.97582189,3640.8,3640.7,0.24724]
[1736113690498,0.6593775,3640.8,3640.7,0.24724]
[1736113690685,0.4121475,3640.8,3640.7,0.24724]
[1736113692793,5.39925049,3641.0,3640.9,0.24722]
[1736113694387,4.81190712,3641.0,3640.9,0.24722]
[1736113697590,5.05912712,3641.0,3640.9,0.24722]
[1736113698394,10.45837761,3641.0,3640.9,0.24722]
[1736113699897,0.24723,3640.9,3640.8,0.24723]
[1736113700097,1.68356919,3640.9,3640.8,0.24723]
[1736113700691,1.43633919,3640.9,3640.8,0.24723]
[1736113700891,11.6474968,3640.9,3640.8,0.24723]
[1736113702000,11.8947168,3640.9,3640.8,0.24723]
[1736113703892,11.6474968,3640.9,3640.8,0.24723]
[1736113704590,10.65315761,3640.9,3640.8,0.24723]
[1736113705400,5.25390712,3640.9,3640.8,0.24723]
[1736113707295,5.50112712,3640.9,3640.8,0.24723]
[1736113707702,5.25390712,3640.9,3640.8,0.24723]
[1736113708201,10.65315761,3640.9,3640.8,0.24723]
[1736113708402,11.6474968,3640.9,3640.6,0.4333]
[1736113708599,0.24724,3640.7,3640.6,0.68054]
[1736113709410,0.6593875,3640.7,3640.6,0.68054]
[1736113709705,1.65372669,3640.7,3640.6,0.4333]
[1736113709896,2.09112669,3640.7,3640.6,0.4333]
[1736113710298,2.09112669,3640.7,3640.6,0.68054]
[1736113712800,2.09112669,3640.7,3640.6,0.4333]
[1736113714707,1.84388669,3640.7,3640.6,0.4333]
[1736113714908,1.84388669,3640.7,3640.6,0.68054]
[1736113717209,0.4121475,3640.7,3640.6,0.68054]
[1736113717506,5.39925049,3640.8,3640.7,0.24724]
[1736113717810,5.39925049,3640.8,3640.7,1.24157919]
[1736113718121,4.32519096,3640.8,3640.7,1.24157919]
[1736113718909,2.97379096,3640.8,3640.7,1.24157919]
[1736113719809,2.16180449,3640.9,3640.8,0.24723]
[1736113720313,2.16180449,3640.9,3640.8,3.45503]
[1736113721106,2.16180449,3641.1,3641.0,0.24722]
[1736113721313,2.16180449,3641.1,3641.0,1.24155919]
[1736113721705,2.16180449,3641.1,3641.0,4.44935919]
[1736113723016,2.16180449,3641.1,3641.0,8.2744108]
[1736113723405,2.16180449,3641.1,3641.0,8.6865108]
[1736113724610,2.16180449,3641.2,3641.1,0.24721]
[1736113724811,2.16180449,3641.2,3641.1,2.74614919]
[1736113725113,2.16180449,3641.2,3641.1,3.18834919]
[1736113725514,2.16180449,3641.2,3641.1,6.39614919]
[1736113728824,2.16180449,3641.3,3641.2,0.2472]
[1736113731616,2.58370449,3641.3,3641.2,0.2472]
[1736113736721,2.16180449,3641.3,3641.2,0.2472]
[1736113739628,2.57180449,3641.3,3641.2,0.2472]
[1736113740630,2.98010449,3641.3,3641.2,0.2472]
[1736113742531,0.8183,3641.3,3641.2,0.2472]
[1736113745726,0.8183,3641.3,3641.2,3.455]
[1736113752051,0.8183,3641.3,3641.2,4.517]
[1736113753527,0.8183,3641.3,3641.2,0.2472]
[1736113753732,0.8183,3641.3,3641.0,5.29462445]
[1736113753932,1.0655,3641.3,3641.1,0.24721]
[1736113754537,0.8183,3641.3,3641.0,5.29462445]
[1736113754737,1.0655,3641.3,3641.1,0.24721]
[1736113755231,4.30820674,3641.3,3641.2,0.2472]